bitfinex/quotes_ETHUSD_20241116
["timestamp","ask_amount","ask_price","bid_price","bid_amount"]
[1731768808104,3.15917,3165.4,3164.8,0.03655338]
[1731768808515,3.15896,3165.6,3164.8,0.03655338]
[1731768808679,3.15897,3165.6,3165.0,3.15955]
[1731768808880,3.04107101,3165.8,3165.0,3.15955]
[1731768809100,3.15887,3165.7,3165.1,3.19589491]
[1731768809282,3.15901,3165.6,3165.1,0.03644491]
[1731768809484,3.15868,3165.9,3165.1,3.19579491]
[1731768809692,3.15838,3166.2,3165.4,3.15907]
[1731768809876,3.15838,3166.2,3165.2,3.54207113]
[1731768809877,3.15854,3166.1,3165.2,3.54207113]
[1731768810071,3.15826,3166.3,3165.5,3.19512334]
[1731768810273,3.15826,3166.3,3165.6,3.22210747]
[1731768810528,3.15837,3166.2,3165.6,3.1949772]
[1731768811111,6.19924101,3166.4,3165.6,0.0360472]
[1731768811315,3.15786,3166.8,3165.8,3.15875]
[1731768811316,3.15796,3166.6,3165.8,3.15875]
[1731768811620,0.01,3167.4,3165.8,3.15875]
[1731768811621,3.15744,3167.2,3166.5,3.15805]
[1731768811789,3.15769,3166.9,3166.1,6.15845]
[1731768811990,3.1575,3167.1,3166.6,0.03568589]
[1731768812320,3.15708,3167.5,3166.6,3.15795]
[1731768812545,3.15718,3167.4,3166.7,3.22098974]
[1731768812739,3.15701,3167.6,3166.7,3.25668999]
[1731768812740,3.1571,3167.5,3166.7,3.25668999]
[1731768813037,3.15677,3167.8,3166.8,3.15774]
[1731768813249,3.15677,3167.8,3166.9,0.31934403]
[1731768813540,3.15692,3167.7,3166.9,0.31934403]
[1731768813744,3.15692,3167.7,3167.0,0.0354977]
[1731768814047,3.15674,3167.9,3166.8,3.22088975]
[1731768814339,3.15647,3168.1,3167.4,3.0]
[1731768814540,3.15607,3168.5,3167.7,3.15685]
[1731768814726,3.15589,3168.7,3167.9,3.15665]
[1731768815128,3.1558,3168.8,3168.0,0.09825893]
[1731768815335,3.67374988,3169.2,3168.0,0.09825893]
[1731768815542,3.15614,3168.5,3168.0,0.34496261]
[1731768816016,3.1556,3169.0,3168.1,3.15639]
[1731768816352,3.15568,3168.9,3168.2,0.0631161]
[1731768816841,3.1555,3169.1,3168.2,0.03474901]
[1731768817041,3.15517,3169.4,3168.1,0.55]
[1731768817340,3.15517,3169.4,3168.4,0.55]
[1731768817638,3.15536,3169.3,3168.6,3.0]
[1731768817844,3.15505,3169.6,3168.7,0.30345584]
[1731768818141,3.15536,3169.3,3168.7,0.03448623]
[1731768818516,3.15508,3169.5,3168.4,3.55]
[1731768818847,3.15467,3169.9,3168.3,0.55]
[1731768819140,3.67374988,3169.2,3168.5,0.03455838]
[1731768819345,3.15547,3169.1,3168.4,0.03339712]
[1731768819516,3.15521,3169.4,3167.8,0.1]
[1731768819841,3.15521,3169.4,3168.3,3.15617]
[1731768820138,3.15521,3169.4,3168.4,3.78838]
[1731768820340,3.67374988,3169.6,3168.4,0.03308689]
[1731768820548,3.15577,3168.8,3168.4,0.03308689]
[1731768820704,3.15577,3168.8,3167.9,3.55]
[1731768820905,3.15596,3168.6,3168.5,0.03306884]
[1731768821105,3.15558,3169.0,3168.5,0.03306884]
[1731768821299,3.15565,3169.0,3168.6,0.03303277]
[1731768821604,3.15565,3169.0,3168.0,0.55]
[1731768821804,3.15507,3169.5,3168.7,0.03297687]
[1731768822012,3.67374988,3169.6,3168.1,3.670666]
[1731768822339,3.15535,3169.3,3168.8,0.03294101]
[1731768822556,3.15507,3169.5,3168.5,6.70606]
[1731768822843,3.15507,3169.5,3168.9,0.03291636]
[1731768823039,3.15507,3169.5,3168.6,3.1559]
[1731768823252,3.15467,3169.9,3169.0,0.0328803]
[1731768823537,3.15566,3169.0,3168.2,0.55]
[1731768824137,3.15566,3169.0,3168.2,3.0]
[1731768824340,3.15566,3169.0,3168.3,0.03313522]
[1731768824550,3.15566,3169.0,3168.4,0.30331352]
[1731768824855,3.15566,3169.0,3168.5,0.03306396]
[1731768826127,3.15518,3169.4,3168.5,0.03306396]
[1731768826333,3.15529,3169.3,3168.5,3.03306396]
[1731768826511,3.15529,3169.3,3168.6,0.64924675]
[1731768826717,3.15548,3169.1,3168.6,0.64924675]
[1731768826940,3.15548,3169.1,3168.7,0.03182336]
[1731768827225,3.15487,3169.7,3168.4,0.30331352]
[1731768827443,6.82897988,3169.4,3168.8,0.03182177]
[1731768827642,3.15591,3168.7,3167.9,3.0]
[1731768827857,3.15591,3168.7,3167.7,3.0]
[1731768828032,3.15626,3168.3,3167.4,3.15711]
[1731768828228,3.67374988,3169.0,3167.5,0.315711]
[1731768828435,3.67374988,3169.0,3167.1,0.326]
[1731768828657,3.15648,3168.1,3167.2,3.15727]
[1731768828943,3.15657,3168.0,3167.1,0.316]
[1731768829157,3.67374988,3168.6,3167.0,3.15752]
[1731768829317,3.15666,3168.0,3167.1,0.315752]
[1731768829529,3.15637,3168.2,3167.2,0.64505953]
[1731768829716,3.15617,3168.4,3167.3,3.22039203]
[1731768829919,3.0,3169.7,3168.0,3.15648]
[1731768830155,3.67374988,3169.4,3167.8,3.15676]
[1731768830357,3.15607,3168.5,3167.5,38.15704]
[1731768830543,3.15615,3168.5,3167.8,0.55]
[1731768831058,3.15626,3168.3,3167.5,0.55]
[1731768831219,3.15617,3168.4,3167.7,0.55]
[1731768831957,3.15617,3168.4,3167.6,3.0]
[1731768832118,3.15627,3168.3,3167.7,0.615703]
[1731768832324,3.15598,3168.6,3167.7,0.615703]
[1731768832325,3.15621,3168.4,3167.7,0.615703]
[1731768832631,3.15637,3168.2,3167.7,0.615703]
[1731768832835,3.15647,3168.1,3167.4,3.38654516]
[1731768833221,3.15659,3168.0,3167.4,0.38654516]
[1731768833570,3.1568,3167.8,3167.4,0.38654516]
[1731768833855,3.67374988,3168.6,3166.8,4.429643]
[1731768833856,3.15695,3167.7,3166.8,4.429643]
[1731768834054,3.15695,3167.7,3166.8,3.15775]
[1731768834274,3.15696,3167.6,3166.8,3.15775]
[1731768834569,3.15696,3167.6,3166.9,0.315775]
[1731768834720,3.15696,3167.6,3166.6,3.15794]
[1731768835154,3.15677,3167.8,3166.8,3.15773]
[1731768835467,3.15677,3167.8,3166.5,35.01]
[1731768835767,3.15677,3167.8,3167.0,3.0]
[1731768835921,3.15669,3167.9,3167.0,6.15753]
[1731768836269,3.15657,3168.0,3167.1,0.615753]
[1731768836421,3.15682,3167.8,3166.9,3.61843765]
[1731768836618,3.15657,3168.0,3166.9,3.61843765]
[1731768836836,3.15683,3167.8,3166.9,6.77602765]
[1731768837032,3.15639,3168.2,3167.0,3.15751]
[1731768837325,3.15668,3167.9,3167.1,3.0]
[1731768837524,3.15668,3167.9,3167.2,0.615751]
[1731768837837,3.15666,3168.0,3167.2,0.615751]
[1731768838254,3.15668,3167.9,3167.2,0.615751]
[1731768839424,3.67374988,3168.6,3167.3,0.03169104]
[1731768839765,3.15636,3168.2,3167.4,3.15715]
[1731768839966,3.15636,3168.2,3167.5,0.3188841]
[1731768840165,3.15636,3168.2,3167.5,0.35061159]
[1731768840666,3.15657,3168.0,3167.5,0.35061159]
[1731768841170,3.15684,3167.8,3167.5,0.03172749]
[1731768841354,3.15688,3167.7,3167.0,35.0]
[1731768841878,3.15688,3167.7,3167.1,0.03186494]
[1731768841879,3.15709,3167.5,3167.1,0.03186494]
[1731768842226,3.15688,3167.7,3167.0,35.0]
[1731768842448,3.15646,3168.1,3167.2,0.03182882]
[1731768842653,3.67374988,3168.2,3167.1,3.14099947]
[1731768842654,3.15726,3167.3,3167.1,3.17286531]
[1731768842875,3.67374988,3168.2,3166.4,3.47409]
[1731768842876,3.15716,3167.4,3167.3,0.03180963]
[1731768843020,3.15716,3167.4,3167.2,0.03184482]
[1731768843021,3.15726,3167.3,3167.2,0.03184482]
[1731768843225,3.15726,3167.3,3166.4,35.316]
[1731768843226,3.15756,3167.0,3166.4,35.316]
[1731768843421,3.15756,3167.0,3166.4,35.0]
[1731768843623,3.67374988,3167.8,3166.5,0.03194844]
[1731768843946,3.15769,3166.9,3166.5,0.65247379]
[1731768844251,3.15796,3166.6,3166.5,0.65247379]
[1731768844429,3.15796,3166.6,3166.5,0.03194844]
[1731768844624,3.15807,3166.5,3165.8,35.0]
[1731768844852,3.15782,3166.8,3165.9,3.14099947]
[1731768844853,3.15787,3166.7,3165.9,3.14099947]
[1731768845026,3.15782,3166.8,3165.9,3.17317911]
[1731768845240,3.15811,3166.5,3166.0,3.14099947]
[1731768845440,3.15811,3166.5,3166.0,3.17318071]
[1731768845837,3.15804,3166.6,3166.0,3.17318071]
[1731768845838,3.15826,3166.3,3166.0,3.17318071]
[1731768846166,3.15845,3166.1,3166.0,3.17318071]
[1731768846373,3.15845,3166.1,3166.0,0.03218124]
[1731768846576,3.15845,3166.1,3165.1,38.15939]
[1731768846779,3.15845,3166.1,3165.1,35.0]
[1731768846983,3.15866,3165.9,3165.2,0.03146509]
[1731768847144,3.15866,3165.9,3165.3,3.14099947]
[1731768847475,3.15845,3166.1,3165.4,0.03143052]
[1731768848185,3.15855,3166.1,3165.4,0.03143052]
[1731768848348,3.15812,3166.5,3165.4,0.03143052]
[1731768848678,3.67374988,3166.6,3165.5,0.317243]
[1731768848679,3.15893,3165.7,3165.5,0.317243]
[1731768848886,3.15893,3165.7,3165.5,0.03135661]
[1731768849376,3.15842,3166.2,3164.4,3.16013]
[1731768849377,3.15862,3166.0,3164.4,3.16013]
[1731768849537,3.67374988,3166.2,3164.4,3.16013]
[1731768849538,3.15929,3165.3,3164.4,3.16013]
[1731768849745,3.15929,3165.3,3164.5,0.03169309]
[1731768850147,3.15936,3165.2,3164.5,0.03169309]
[1731768850450,3.15957,3165.0,3164.6,0.03163174]
[1731768850665,3.15935,3165.2,3164.0,3.16049]
[1731768850980,3.15966,3164.9,3164.7,0.03159557]
[1731768851277,3.15966,3164.9,3164.8,0.0315594]
[1731768851483,3.15947,3165.1,3164.2,3.25027]
[1731768851645,3.15947,3165.1,3164.8,0.03177335]
[1731768851982,3.15965,3164.9,3164.8,0.03177335]
[1731768852185,3.15985,3164.8,3164.2,0.09]
[1731768852487,3.15961,3165.0,3164.8,0.03179774]
[1731768852643,3.15965,3164.9,3164.2,0.09]
[1731768852842,3.15905,3165.5,3164.1,0.632105]
[1731768852843,3.15914,3165.5,3164.9,0.03176609]
[1731768853079,3.15914,3165.5,3164.3,0.06319221]
[1731768853080,3.15875,3165.8,3164.4,3.16014]
[1731768853287,3.15943,3165.2,3164.5,0.32233322]
[1731768853443,0.01,3166.3,3164.5,0.03191078]
[1731768853444,3.15957,3165.0,3164.5,0.03191078]
[1731768853643,3.67374988,3165.5,3164.1,0.63924979]
[1731768853644,5.99909,3164.7,3164.1,0.63924979]
[1731768853950,5.99909,3164.7,3164.6,0.0318746]
[1731768853951,2.83916,3164.7,3164.6,0.0318746]
[1731768854151,3.16025,3164.3,3164.2,0.09]
[1731768854986,3.16038,3164.2,3163.2,3.16134]
[1731768855179,3.16038,3164.2,3163.3,0.09]
[1731768855484,3.16038,3164.2,3163.3,0.12147661]
[1731768856381,3.16055,3164.0,3163.3,0.12147661]
[1731768856566,3.16066,3163.9,3163.3,0.12147661]
[1731768856793,3.16088,3163.7,3163.3,0.12147661]
[1731768857082,3.16088,3163.7,3163.3,0.09]
[1731768857291,3.16113,3163.5,3163.4,0.03178779]
[1731768857582,3.1612,3163.4,3163.2,0.64339065]
[1731768857752,3.16117,3163.4,3163.2,0.64339065]
[1731768857953,3.67374988,3163.9,3163.2,0.64339065]
[1731768857954,3.16125,3163.3,3163.2,0.64339065]
[1731768858402,3.16125,3163.3,3161.9,6.643806]
[1731768858403,3.16178,3162.8,3161.8,3.16273]
[1731768858697,3.67374988,3163.5,3161.9,0.317273]
[1731768858847,3.16194,3162.7,3161.9,0.317273]
[1731768859253,3.16156,3163.0,3162.0,0.62103052]
[1731768859454,3.16188,3162.7,3162.0,0.62103052]
[1731768859694,3.16166,3162.9,3162.0,0.62103052]
[1731768859850,3.67374988,3163.5,3162.3,3.16223]
[1731768859851,3.16117,3163.4,3162.3,3.16223]
[1731768860054,3.16117,3163.4,3162.4,0.37945201]
[1731768860256,3.16125,3163.3,3162.1,0.55]
[1731768860680,3.16101,3163.6,3162.7,3.16178]
[1731768860881,3.16101,3163.6,3162.8,0.06322399]
[1731768861291,3.16117,3163.4,3162.4,3.16211]
[1731768861520,3.16117,3163.4,3162.5,0.632433]
[1731768861795,3.16075,3163.8,3162.7,3.16177]
[1731768861954,3.1609,3163.7,3162.8,0.06322202]
[1731768862155,3.16056,3164.0,3163.0,3.16147]
[1731768862394,3.16056,3164.0,3163.1,0.37936498]
[1731768862599,3.16056,3164.0,3163.1,0.06321798]
[1731768862763,3.16056,3164.0,3162.6,0.07321312]
[1731768862950,3.16056,3164.0,3163.1,3.16136]
[1731768863154,3.16016,3164.4,3163.2,0.0632131]
[1731768863374,3.15984,3164.8,3163.9,3.16063]
[1731768863605,3.15984,3164.8,3163.2,0.72470628]
[1731768863606,3.15984,3164.8,3163.8,3.16071]
[1731768863809,3.15984,3164.8,3163.9,3.16062]
[1731768864097,3.15958,3165.0,3163.9,0.03182819]
[1731768864391,3.15958,3165.0,3164.0,3.1605]
[1731768864392,3.15976,3164.8,3164.0,3.1605]
[1731768864595,3.15984,3164.8,3164.1,0.31923282]
[1731768864910,3.15989,3164.7,3164.1,0.03090812]
[1731768865298,3.15969,3164.9,3163.5,0.01]
[1731768865569,3.15921,3165.4,3164.2,0.03087193]
[1731768865771,3.15921,3165.4,3164.6,3.15994]
[1731768865970,3.15929,3165.3,3164.7,0.37917963]
[1731768866309,3.15946,3165.1,3164.7,0.34668501]
[1731768866477,3.15946,3165.1,3164.7,0.03069101]
[1731768866800,3.15946,3165.1,3164.4,3.16014]
[1731768867100,3.15946,3165.1,3164.8,0.03049222]
[1731768867257,3.15946,3165.1,3164.2,3.16033]
[1731768867460,3.15946,3165.1,3164.9,0.03061866]
[1731768867791,3.15908,3165.5,3164.6,3.15988]
[1731768867958,3.15915,3165.5,3165.0,0.03058249]
[1731768868155,3.67374988,3165.9,3164.4,3.16013]
[1731768868156,3.15943,3165.2,3164.4,3.16013]
[1731768868393,3.15943,3165.2,3165.1,0.03053373]
[1731768868595,3.67374988,3165.5,3164.5,0.316013]
[1731768868794,3.15976,3164.8,3164.1,3.16045]
[1731768869285,3.15976,3164.8,3164.2,0.03087193]
[1731768869457,3.15976,3164.8,3164.3,0.31913219]
[1731768869664,3.15938,3165.2,3164.3,0.34996793]
[1731768869914,3.15947,3165.1,3164.4,3.16015]
[1731768870200,3.15915,3165.4,3164.4,0.03079956]
[1731768870411,3.67374988,3165.5,3164.4,0.03079956]
[1731768870605,3.15975,3164.8,3164.0,3.78582227]
[1731768870760,3.15975,3164.8,3164.5,0.03077597]
[1731768870954,3.15962,3165.0,3164.5,0.03077597]
[1731768871204,3.15962,3165.0,3164.2,3.16034]
[1731768871367,3.15962,3165.0,3164.6,0.03068736]
[1731768871570,3.15969,3164.9,3164.2,3.16034]
[1731768871770,3.15962,3165.0,3164.7,0.03065118]
[1731768871970,3.15962,3165.0,3164.3,0.35389222]
[1731768872169,3.15965,3164.9,3164.8,0.03062404]
[1731768872374,3.15965,3164.9,3164.3,0.35389222]
[1731768872574,3.15965,3164.9,3164.4,0.35142322]
[1731768873679,3.15965,3164.9,3164.5,0.03073348]
[1731768874360,3.67374988,3165.1,3164.5,0.03073348]
[1731768874557,3.15969,3164.9,3164.5,0.03073348]
[1731768874800,6.83321988,3165.1,3164.3,3.16025]
[1731768875006,6.83321988,3165.1,3164.4,0.3792193]
[1731768875162,3.15956,3165.0,3164.4,3.57006124]
[1731768875363,3.15956,3165.0,3164.4,0.40992124]
[1731768875666,3.15956,3165.0,3164.4,0.34672694]
[1731768875882,3.15967,3164.9,3164.4,0.4099213]
[1731768876072,3.15967,3164.9,3164.4,0.0938963]
[1731768876312,6.83323988,3165.1,3164.4,0.0938963]
[1731768876680,3.15963,3165.0,3164.4,0.0938963]
[1731768877008,3.15963,3165.0,3164.4,0.41931093]
[1731768877311,3.67374988,3165.1,3164.4,0.41931093]
[1731768877618,3.67374988,3165.1,3164.4,3.57940093]
[1731768877619,6.83321988,3165.1,3164.4,3.57940093]
[1731768878113,6.83321988,3165.1,3164.4,3.51620657]
[1731768878317,6.83321988,3165.1,3164.4,0.03070194]
[1731768878318,3.67374988,3165.1,3164.4,0.03070194]
[1731768878617,3.16004,3164.6,3163.9,3.79365134]
[1731768878916,3.16016,3164.4,3164.0,0.02976501]
[1731768879117,6.83324988,3165.1,3164.0,0.02976501]
[1731768879118,3.1601,3164.5,3164.0,0.02976501]
[1731768880123,6.83360988,3164.7,3164.0,0.02976501]
[1731768880284,6.83360988,3164.7,3164.0,0.45005116]
[1731768880285,3.16016,3164.4,3164.0,0.45005116]
[1731768880875,6.83360988,3164.7,3164.0,0.45005116]
[1731768881079,3.16001,3164.6,3164.0,0.45005116]
[1731768881571,3.15986,3164.7,3164.1,0.06320087]
[1731768881776,3.15986,3164.7,3164.2,0.02971974]
[1731768882175,3.15966,3164.9,3164.2,3.19006974]
[1731768882399,3.15966,3164.9,3164.2,0.02971974]
[1731768882608,3.15966,3164.9,3164.2,3.19001974]
[1731768883418,3.15955,3165.0,3164.2,0.02971974]
[1731768883592,3.15955,3165.0,3163.5,3.16104]
[1731768883593,3.16025,3164.3,3163.5,3.16104]
[1731768883925,3.16025,3164.3,3162.8,3.16166]
[1731768883926,3.16052,3164.1,3163.6,0.34601922]
[1731768884130,3.16056,3164.0,3163.6,0.02991522]
[1731768884427,3.16076,3163.8,3163.1,3.16142]
[1731768884584,6.83412988,3164.2,3163.2,3.477482]
[1731768884785,3.15909,3165.5,3162.6,0.326]
[1731768884786,3.67374988,3164.6,3163.1,0.95399611]
[1731768885030,3.16042,3164.2,3163.4,3.16115]
[1731768885232,3.16042,3164.2,3163.5,3.48004553]
[1731768885446,3.16042,3164.2,3163.5,0.34799453]
[1731768885587,3.16062,3164.0,3163.5,0.028979]
[1731768885792,3.16057,3164.0,3163.5,0.028979]
[1731768886097,6.83371988,3164.6,3163.6,0.0289428]
[1731768886098,3.16014,3164.5,3163.6,0.0289428]
[1731768886300,3.16014,3164.5,3163.3,0.06321317]
[1731768886503,3.16019,3164.4,3163.7,3.16085]
[1731768886700,3.16053,3164.1,3163.4,3.19007159]
[1731768886935,3.16053,3164.1,3163.8,0.02886678]
[1731768887143,3.16053,3164.1,3163.4,3.16106]
[1731768887341,3.16035,3164.2,3163.9,0.02883058]
[1731768887634,3.16016,3164.4,3163.7,3.16084]
[1731768887795,3.16025,3164.3,3164.0,0.02879439]
[1731768888129,3.16025,3164.3,3163.8,0.316084]
[1731768888130,3.16025,3164.3,3163.8,0.06320745]
[1731768888290,3.16025,3164.3,3164.1,0.02875819]
[1731768888600,3.16025,3164.3,3164.2,0.028722]
[1731768888801,3.16025,3164.3,3163.7,3.16083]
[1731768889007,3.16006,3164.5,3163.8,0.72506449]
[1731768889307,3.16006,3164.5,3163.8,3.88581449]
[1731768890293,3.16016,3164.4,3163.8,3.88581449]
[1731768892230,3.16038,3164.2,3163.8,0.72506449]
[1731768892435,3.16038,3164.2,3163.8,0.02886045]
[1731768892629,3.16038,3164.2,3163.6,0.64027038]
[1731768892929,3.16038,3164.2,3163.7,0.02889575]
[1731768893101,3.16058,3164.0,3163.6,0.64027038]
[1731768893309,3.16038,3164.2,3163.8,0.02885955]
[1731768893490,3.16062,3164.0,3163.1,3.16145]
[1731768893693,3.16041,3164.2,3163.9,0.02882335]
[1731768893933,3.16041,3164.2,3163.5,0.06321028]
[1731768894229,3.16045,3164.1,3163.4,3.16115]
[1731768894434,3.16041,3164.2,3163.5,0.0290269]
[1731768894814,3.16018,3164.4,3163.5,0.0290269]
[1731768895032,3.16048,3164.1,3163.5,0.34304459]
[1731768895429,3.16056,3164.0,3163.5,0.34304459]
[1731768897196,3.03798237,3164.1,3163.5,0.0290269]
[1731768897397,3.16082,3163.8,3163.5,0.0290269]
[1731768897602,3.16082,3163.8,3163.1,3.16137]
[1731768897845,3.16055,3164.0,3163.3,3.16125]
[1731768898005,3.16067,3163.9,3163.4,0.3462401]
[1731768898206,3.03798237,3164.1,3163.4,0.0301151]
[1731768898409,3.16056,3164.0,3163.4,0.0301151]
[1731768898622,3.16065,3163.9,3163.4,0.0301151]
[1731768899166,3.16071,3163.9,3163.4,0.0301151]
[1731768899454,3.16077,3163.8,3163.2,3.79048069]
[1731768899755,3.16077,3163.8,3163.5,0.03239012]
[1731768899908,3.16086,3163.7,3163.2,0.37904807]
[1731768900108,3.1612,3163.4,3162.7,3.16183]
[1731768900451,3.16155,3163.0,3162.9,0.61946342]
[1731768900611,3.16155,3163.0,3162.4,3.16214]
[1731768901058,3.16155,3163.0,3162.3,0.07]
[1731768901343,3.03798237,3163.1,3162.4,3.16213]
[1731768901565,6.19914237,3163.4,3162.5,0.06323198]
[1731768901854,3.03798237,3164.2,3163.1,3.16144]
[1731768902052,3.16035,3164.2,3163.4,3.16111]
[1731768902289,3.16035,3164.2,3163.5,0.316111]
[1731768902552,3.16023,3164.4,3163.7,3.16083]
[1731768902741,3.16023,3164.4,3163.8,3.16074]
[1731768902940,3.16023,3164.4,3163.7,0.06320785]
[1731768903115,3.16007,3164.5,3163.8,3.16072]
[1731768903311,3.15996,3164.6,3163.7,0.41723474]
[1731768903312,3.15996,3164.6,3163.9,3.22385483]
[1731768903751,3.16008,3164.5,3163.9,3.22385483]
[1731768904056,3.03798237,3165.5,3163.2,3.477]
[1731768904057,3.15971,3164.9,3164.2,3.16026]
[1731768904264,3.15971,3164.9,3164.0,3.16055]
[1731768904567,3.16015,3164.5,3163.7,3.16077]
[1731768904721,3.16015,3164.5,3163.6,3.47662]
[1731768904722,3.16015,3164.5,3163.8,3.16073]
[1731768904923,3.16017,3164.4,3163.8,3.16073]
[1731768905721,3.16017,3164.4,3163.9,0.06320493]
[1731768905931,3.15951,3165.1,3163.9,0.06320493]
[1731768905932,3.15968,3164.9,3164.3,3.16024]
[1731768906154,3.03798237,3165.4,3164.6,3.15995]
[1731768906347,3.15906,3165.5,3164.7,3.15978]
[1731768906523,3.15906,3165.5,3164.8,3.22293713]
[1731768907060,3.15897,3165.6,3165.0,3.15952]
[1731768907216,3.15876,3165.8,3165.0,0.06318277]
[1731768907417,3.15876,3165.8,3165.1,3.15944]
[1731768908627,3.15876,3165.8,3165.2,3.15935]
[1731768908929,3.15856,3166.0,3165.3,3.15918]
[1731768909133,3.15826,3166.3,3165.4,0.06317745]
[1731768909334,3.15848,3166.1,3165.4,0.06317745]
[1731768909552,3.15848,3166.1,3165.3,3.15925]
[1731768909553,3.15853,3166.1,3165.3,3.15925]
[1731768909726,3.15828,3166.3,3165.3,3.15925]
[1731768909921,3.15857,3166.0,3165.3,3.15925]
[1731768910456,3.15874,3165.9,3165.2,0.95773033]
[1731768910644,3.15906,3165.5,3164.7,3.15978]
[1731768910963,3.15906,3165.5,3164.8,3.15975]
[1731768911186,3.15916,3165.4,3164.6,4.09954749]
[1731768911323,3.15926,3165.3,3164.6,0.62360449]
[1731768911636,3.6786027,3165.7,3164.4,3.16011]
[1731768911969,3.15937,3165.2,3164.4,3.16011]
[1731768912174,3.15916,3165.4,3164.5,0.06319091]
[1731768912469,3.15916,3165.4,3164.6,3.48219009]
[1731768912634,3.15916,3165.4,3164.7,3.22301752]
[1731768913152,3.6786027,3165.7,3164.6,0.32233009]
[1731768913320,3.15944,3165.2,3164.5,3.16005]
[1731768914261,3.15918,3165.4,3164.6,0.06318754]
[1731768914466,3.15948,3165.1,3164.5,3.15998]
[1731768914639,3.15947,3165.1,3164.5,3.15998]
[1731768915166,3.15947,3165.1,3164.4,0.55]
[1731768915330,3.15947,3165.1,3164.3,3.79855739]
[1731768915331,3.15932,3165.3,3164.3,3.79863739]
[1731768915530,3.15907,3165.5,3164.7,3.15979]
[1731768915850,3.15907,3165.5,3164.8,0.0631874]
[1731768916032,3.1592,3165.4,3164.8,0.0631874]
[1731768916239,3.1592,3165.4,3164.5,3.16005]
[1731768916240,3.15928,3165.3,3164.5,3.16005]
[1731768916477,3.15928,3165.3,3164.5,3.91091874]
[1731768917433,3.15928,3165.3,3164.6,3.15995]
[1731768917731,3.16826,3166.3,3164.5,0.75086874]
[1731768917732,3.15874,3165.9,3165.2,3.15928]
[1731768917927,3.15874,3165.9,3165.3,0.06317521]
[1731768918154,3.15848,3166.1,3165.3,0.38542073]
[1731768918353,3.15848,3166.1,3164.8,0.55]
[1731768918354,3.15831,3166.3,3165.6,3.15888]
[1731768918528,3.15831,3166.3,3164.8,0.55]
[1731768918529,3.6886027,3166.9,3165.7,0.06316779]
[1731768918747,3.15847,3166.1,3165.4,0.55]
[1731768919056,3.15858,3166.0,3165.4,35.55]
[1731768919264,3.15786,3166.7,3165.4,35.55]
[1731768919576,3.6786027,3166.5,3165.2,3.15934]
[1731768919872,3.15863,3166.0,3165.3,35.0]
[1731768920027,3.15867,3165.9,3165.3,35.0]
[1731768920223,3.15892,3165.7,3165.3,35.0]
[1731768920425,3.15908,3165.5,3164.7,0.61636503]
[1731768920656,3.15908,3165.5,3164.9,3.15963]
[1731768921057,3.15917,3165.4,3164.7,3.77618503]
[1731768921224,3.15917,3165.4,3164.7,4.46979753]
[1731768921659,3.15917,3165.4,3164.8,3.15973]
[1731768922159,3.15917,3165.4,3164.7,0.6936125]
[1731768922363,3.15917,3165.4,3164.6,3.15994]
[1731768923290,3.15936,3165.2,3164.6,3.15994]
[1731768924298,3.15917,3165.4,3164.6,3.15994]
[1731768924500,3.15877,3165.8,3165.1,3.15939]
[1731768924670,3.15877,3165.8,3165.2,0.37911822]
[1731768924873,3.15857,3166.0,3165.3,3.15923]
[1731768925082,0.68365627,3166.4,3165.2,3.15935]
[1731768925083,3.15872,3165.9,3165.2,3.15935]
[1731768925412,3.15848,3166.1,3165.3,3.15917]
[1731768925700,3.15874,3165.9,3165.4,0.631852]
[1731768925911,0.68365627,3166.4,3165.0,3.15955]
[1731768925912,3.15876,3165.8,3165.0,3.15955]
[1731768926065,0.68365627,3166.4,3164.8,3.70972]
[1731768926066,3.15896,3165.6,3164.8,3.70972]
[1731768926395,3.15896,3165.6,3165.0,3.15951]
[1731768926715,3.15896,3165.6,3165.1,0.06317931]
[1731768927076,3.6786027,3166.5,3165.0,3.15951]
[1731768927077,0.36886027,3166.8,3165.5,3.15905]
[1731768927274,3.15778,3166.8,3165.9,3.15862]
[1731768927583,3.15778,3166.8,3166.2,3.15835]
[1731768927786,3.15797,3166.6,3165.7,38.15884]
[1731768927960,3.15797,3166.6,3166.0,3.15855]
[1731768928611,3.15758,3167.0,3166.1,0.06315964]
[1731768928786,3.15738,3167.2,3166.1,0.06315964]
[1731768928985,3.15738,3167.2,3166.4,3.15808]
[1731768929214,3.15738,3167.2,3166.5,0.06315329]
[1731768929373,3.15747,3167.1,3166.5,0.06315329]
[1731768929906,3.15747,3167.1,3166.4,3.15808]
[1731768930114,3.15747,3167.1,3166.4,3.789724]
[1731768930280,3.15729,3167.3,3166.4,3.789724]
[1731768930478,3.15757,3167.0,3166.4,3.789724]
[1731768931575,3.15797,3166.6,3166.0,3.15853]
[1731768931777,3.15696,3167.6,3165.8,6.29974947]
[1731768931778,3.15696,3167.6,3166.4,3.15813]
[1731768932103,3.1572,3167.4,3166.7,3.15782]
[1731768932275,3.15697,3167.6,3166.8,3.15766]
[1731768932600,3.1571,3167.5,3166.8,3.15766]
[1731768932831,3.1571,3167.5,3166.9,0.315766]
[1731768933113,0.01,3168.4,3166.9,0.315766]
[1731768933114,3.15689,3167.7,3167.0,3.22061281]
[1731768933463,3.15689,3167.7,3166.9,3.473336]
[1731768933664,3.15676,3167.8,3167.0,3.15755]
[1731768933968,3.15681,3167.8,3167.1,0.41047164]
[1731768934264,3.15667,3167.9,3167.2,3.15728]
[1731768934777,3.15647,3168.1,3167.3,3.15717]
[1731768934987,3.15647,3168.1,3167.5,3.15704]
[1731768935274,3.15627,3168.3,3167.6,0.0631317]
[1731768935462,3.15628,3168.3,3167.6,0.0631317]
[1731768935813,3.15632,3168.3,3167.6,0.0631317]
[1731768935965,3.15645,3168.2,3167.6,0.0631317]
[1731768936309,3.15582,3168.8,3167.7,0.32201817]
[1731768936514,3.15648,3168.1,3167.4,3.70716]